[Event "Chinese League Div-A Rapid 2022"]
[Site "Fuling,Chongqing"]
[Date "2022.09.14"]
[Round "7.8"]
[White "Wen, Yang"]
[Black "Pang, Tao"]
[Result "1/2-1/2"]
[ECO "C01"]
[WhiteElo "2588"]
[BlackElo "2427"]
[Annotator "TA"]
[PlyCount "56"]
[EventDate "2022.09.07"]
[EventType "team-tourn"]
[EventCountry "CHN"]
[SourceTitle "playchess.com"]
[Source "ChessBase"]
[SourceQuality "1"]
[TimeControl "1500+10"]

{[%evp 12,56,17,3,17,14,20,-6,-13,-9,0,-7,8,10,13,22,8,0,0,0,0,0,0,0,14,30,26,30,28,29,16,37,68,62,259,0,265,0,0,0,235,0,0,0,251,0,0]} 1. e4 {[%emt 0:00:03]} e6 {[%emt 0:00:01]} 2. d4 {[%emt 0:00:05]} d5 {[%emt 0:00:02]} 3. exd5 {[%emt 0:00:01]} exd5 {[%emt 0:00:02]} 4. Nf3 {[%emt 0:00:03]} Nf6 {[%emt 0:00:22]} 5. Bd3 {[%emt 0:00:02]} Bd6 {[%emt 0:00:05]} 6. O-O {[%emt 0:00:03]} O-O {[%emt 0:00:02]} 7. h3 {[%emt 0:00:05]} Nbd7 {[%emt 0:01:39] C01: French: Exchange Variation.} 8. Nc3 {[%emt 0:01:54]} c6 {[%emt 0:00:09] Against Nb5} 9. Bg5 {[%emt 0:00:05]} h6 {[%emt 0:00:43]} 10. Bh4 {[%emt 0:00:09]} Qc7 {[%emt 0:00:14]} 11. Re1 {[%emt 0:08:17]} g5 {[%emt 0:01:34] [#]} 12. Nxg5 {[%emt 0:01:39][%cal Og5h7] Hoping for Nh7!} hxg5 {[%emt 0:00:01]} (12... Bh2+ 13. Kh1) 13. Bxg5 {[%emt 0:00:02] [#] Black must now prevent Qf3.} Bh2+ $146 {[%emt 0:04:11]} ({Predecessor:} 13... Bf4 14. Bxf4 Qxf4 15. Re3 Kh8 16. Ne2 Qh6 17. Ng3 Nb6 18. Qf3 Be6 19. Bf5 Nc4 {0-1 (29) Michalko,P (1361)-Vitazka,J (1778) Bratislava 2004}) 14. Kh1 {[%emt 0:01:00]} Bf4 {[%emt 0:00:03]} 15. h4 {[%emt 0:00:01][%cal Bh3h4,Bh4g5][%mdl 32] Threatens to win with Qf3.} Kg7 {[%emt 0:02:14]} 16. g3 $1 {[%emt 0:00:31]} Bxg5 {[%emt 0:00:16]} 17. hxg5 {[%emt 0:00:02] And now Kg2 would win.} Rh8+ {[%emt 0:00:26]} 18. Kg2 $1 {[%emt 0:00:08] Strongly threatening Rh1.} Ng8 {[%emt 0:00:10]} 19. Rh1 {[%emt 0:01:49] Dancing on a razor blade.} Rxh1 {[%emt 0:00:31]} 20. Qxh1 {[%emt 0:00:01]} Nf8 {[%emt 0:00:08] Prevents Qh7+.} 21. Qh5 {[%emt 0:00:39][%mdl 1024] aiming for Rh1. White has compensation.} Ng6 {[%emt 0:05:31]} 22. Rh1 $36 {[%emt 0:00:07][%mdl 2048] White fights for an advantage. White is more active.} N8e7 {[%emt 0:00:31]} (22... Kf8 $14) 23. Qh6+ $18 {[%emt 0:02:27]} Kg8 {[%emt 0:00:01]} 24. Qh7+ {[%emt 0:03:27]} Kf8 {[%emt 0:00:01]} 25. Qh6+ {[%emt 0:00:00]} Kg8 $1 {[%emt 0:00:01]} (25... Ke8 26. Qg7 Qd6 27. f4 $16) 26. Qh7+ {[%emt 0:00:25]} Kf8 {[%emt 0:00:00]} 27. Qh6+ {[%emt 0:00:15]} Kg8 $1 {[%emt 0:00:01] [#]} ({Resist} 27... Ke8 28. Qg7 $16) 28. Qh7+ $2 {[%emt 0:01:36]} ({White must play} 28. Ne2 $1 $18 {[%cal Re2f4]} Bf5 29. Qh7+ Kf8 30. Bxf5 Nxf5 31. Nf4 Nfh4+ 32. Rxh4 Nxh4+ 33. Qxh4) 28... Kf8 {[%emt 0:00:01] Weighted Error Value: White=0.34/Black=0.16 (very precise)} 1/2-1/2

[Event "Chinese League Div-A Rapid 2022"]
[Site "Fuling,Chongqing"]
[Date "2022.09.14"]
[Round "7.9"]
[White "Sun, Fanghui"]
[Black "Song, Yuxin"]
[Result "1/2-1/2"]
[ECO "B97"]
[WhiteElo "2182"]
[BlackElo "2317"]
[Annotator "RC"]
[PlyCount "62"]
[EventDate "2022.09.07"]
[EventType "team-tourn"]
[EventCountry "CHN"]
[SourceTitle "playchess.com"]
[Source "ChessBase"]
[SourceQuality "1"]
[TimeControl "1500+10"]

1. e4 {[%emt 0:00:02]} c5 {[%emt 0:00:00]} 2. Nf3 {[%emt 0:00:03]} d6 {[%emt 0:00:01]} 3. d4 {[%emt 0:00:02]} cxd4 {[%emt 0:00:01]} 4. Nxd4 {[%emt 0:00:02]} Nf6 {[%emt 0:00:01]} 5. Nc3 {[%emt 0:00:03]} a6 {[%emt 0:00:00]} 6. Bg5 {[%emt 0:00:04]} e6 {[%emt 0:00:01]} 7. f4 {[%emt 0:00:04]} Qb6 {[%emt 0:00:01]} 8. Qd3 {[%emt 0:01:05]} Qxb2 {[%emt 0:00:02]} 9. Rb1 {[%emt 0:00:01]} Qa3 {[%emt 0:00:02]} 10. f5 {[%emt 0:00:39]} Be7 {[%emt 0:00:04]} 11. fxe6 {[%emt 0:01:36]} Bxe6 {[%emt 0:00:02]} 12. Nxe6 {[%emt 0:01:22]} fxe6 {[%emt 0:00:02]} 13. Rxb7 {[%emt 0:00:16]} Qc5 {[%emt 0:01:12]} 14. Be3 {[%emt 0:02:33]} Qc8 {[%emt 0:00:04]} 15. Rb3 {[%emt 0:02:04]} Nbd7 {[%emt 0:00:03]} 16. Qc4 {[%emt 0:00:12]} Qxc4 {[%emt 0:00:18]} 17. Bxc4 {[%emt 0:00:02]} Kf7 {[%emt 0:00:02]} 18. Rf1 {[%emt 0:01:25]} Rhc8 {[%emt 0:00:45]} 19. Bd3 {[%emt 0:00:20]} Nc5 {[%emt 0:04:33]} 20. Bxc5 {[%emt 0:01:15]} Rxc5 {[%emt 0:00:02]} 21. Na4 {[%emt 0:00:40]} Ra5 {[%emt 0:03:52]} 22. Nb6 {[%emt 0:00:02]} Rd8 {[%emt 0:00:30]} 23. a4 {[%emt 0:01:10]} Ke8 {[%emt 0:00:08]} 24. Kd2 {[%emt 0:01:12]} Nd7 {[%emt 0:00:05]} 25. Nxd7 {[%emt 0:01:53]} Rxd7 {[%emt 0:00:01]} 26. Rb6 {[%emt 0:00:45]} Bg5+ {[%emt 0:00:40]} 27. Ke2 {[%emt 0:00:48]} Rxa4 {[%emt 0:00:05]} 28. Rxa6 {[%emt 0:00:02]} Rxa6 {[%emt 0:00:04]} 29. Bxa6 {[%emt 0:00:02]} Ra7 {[%emt 0:00:39]} 30. Bc4 {[%emt 0:00:23]} Ke7 {[%emt 0:00:02]} 31. Rb1 {[%emt 0:01:10]} Bf6 {[%emt 0:00:23]} 1/2-1/2

[Event "Chinese League Div-A Rapid 2022"]
[Site "Fuling,Chongqing"]
[Date "2022.09.14"]
[Round "7.10"]
[White "Shao, Qiyu"]
[Black "Li, Xueyi"]
[Result "1/2-1/2"]
[ECO "D45"]
[WhiteElo "1467"]
[BlackElo "2280"]
[Annotator "NA RC"]
[PlyCount "88"]
[EventDate "2022.09.07"]
[EventType "team-tourn"]
[EventCountry "CHN"]
[SourceTitle "playchess.com"]
[Source "ChessBase"]
[SourceQuality "1"]
[TimeControl "1500+10"]

1. c4 {[%emt 0:00:02]} c6 {[%emt 0:00:01]} 2. Nf3 {[%emt 0:00:04]} d5 {[%emt 0:00:02]} 3. e3 {[%emt 0:00:01]} Nf6 {[%emt 0:00:01]} 4. Nc3 {[%emt 0:00:06]} e6 {[%emt 0:00:09]} 5. b3 {[%emt 0:00:09]} Nbd7 {[%emt 0:00:11]} 6. Bb2 {[%emt 0:00:08]} Bd6 {[%emt 0:00:06]} 7. d4 {[%emt 0:00:10]} O-O {[%emt 0:00:11]} 8. Be2 {[%emt 0:00:30]} b6 {[%emt 0:00:11]} 9. O-O {[%emt 0:00:28]} Bb7 {[%emt 0:00:02]} 10. Rc1 {[%emt 0:00:03]} Qe7 {[%emt 0:00:24]} 11. cxd5 {[%emt 0:01:02]} exd5 {[%emt 0:00:13]} 12. Bd3 {[%emt 0:00:54]} Ne4 {[%emt 0:00:31]} 13. Ne2 {[%emt 0:02:00]} f5 {[%emt 0:02:57]} 14. Ng3 {[%emt 0:01:13]} Rf6 {[%emt 0:04:08]} 15. Re1 {[%emt 0:01:16]} Raf8 {[%emt 0:00:25]} 16. Nd2 {[%emt 0:01:06]} Rh6 {[%emt 0:00:57]} 17. Ndf1 {[%emt 0:01:44]} Qh4 {[%emt 0:01:23]} 18. f4 {[%emt 0:05:47]} Bb4 {[%emt 0:06:18]} 19. Re2 {[%emt 0:01:06]} Bc8 {[%emt 0:00:15]} 20. a3 {[%emt 0:01:13]} Nxg3 {[%emt 0:00:22]} 21. hxg3 {[%emt 0:00:38]} Qh1+ {[%emt 0:00:02]} 22. Kf2 {[%emt 0:00:02]} Be7 {[%emt 0:00:09]} 23. Nd2 {[%emt 0:00:22]} Qh5 {[%emt 0:00:25]} 24. Re1 {[%emt 0:00:07]} Qe8 {[%emt 0:00:02]} 25. Rh1 {[%emt 0:00:42]} Rxh1 {[%emt 0:00:28]} 26. Qxh1 {[%emt 0:00:02]} Nf6 {[%emt 0:00:02]} 27. Be2 {[%emt 0:00:31]} Bd6 {[%emt 0:00:12]} 28. Rc3 {[%emt 0:00:57]} Bb7 {[%emt 0:00:49]} 29. Bf3 {[%emt 0:03:23]} Qe7 {[%emt 0:00:10]} 30. b4 {[%emt 0:01:05]} Re8 {[%emt 0:00:15]} 31. Qc1 {[%emt 0:01:47]} c5 {[%emt 0:00:39]} 32. bxc5 {[%emt 0:00:04]} bxc5 {[%emt 0:00:03]} 33. Rb3 {[%emt 0:00:02]} Ba6 {[%emt 0:00:47]} 34. dxc5 {[%emt 0:00:42]} Bxc5 {[%emt 0:00:04]} 35. Be5 {[%emt 0:00:02]} Bb6 {[%emt 0:02:50]} 36. Rc3 {[%emt 0:00:22]} Kh8 {[%emt 0:01:43]} 37. Nb3 {[%emt 0:00:17]} Bc4 {[%emt 0:00:44]} 38. Nd4 {[%emt 0:00:10]} Bxd4 {[%emt 0:00:59]} 39. Bxd4 {[%emt 0:00:01]} Ne4+ {[%emt 0:00:54]} 40. Bxe4 {[%emt 0:00:02]} fxe4 {[%emt 0:00:25]} 41. Qb2 {[%emt 0:00:13]} Kg8 {[%emt 0:00:12]} 42. Rc1 {[%emt 0:00:05]} a6 {[%emt 0:00:31]} 43. Rb1 {[%emt 0:00:09]} Bd3 {[%emt 0:00:01]} 44. Rc1 {[%emt 0:00:03]} Bc4 {[%emt 0:00:01]} 1/2-1/2

[Event "Chinese League Div-A Rapid 2022"]
[Site "Fuling,Chongqing"]
[Date "2022.09.14"]
[Round "7.11"]
[White "Xu, Jun"]
[Black "Wang, Chen"]
[Result "1-0"]
[ECO "E32"]
[WhiteElo "2474"]
[BlackElo "2476"]
[Annotator "RC"]
[PlyCount "119"]
[EventDate "2022.09.07"]
[EventType "team-tourn"]
[EventCountry "CHN"]
[SourceTitle "playchess.com"]
[Source "ChessBase"]
[SourceQuality "1"]
[TimeControl "1500+10"]

1. d4 {[%emt 0:00:04]} Nf6 {[%emt 0:00:03]} 2. c4 {[%emt 0:00:26]} e6 {[%emt 0:00:02]} 3. Nc3 {[%emt 0:00:07]} Bb4 {[%emt 0:01:31]} 4. Qc2 {[%emt 0:00:10]} d6 {[%emt 0:02:23]} 5. a3 {[%emt 0:01:41]} Bxc3+ {[%emt 0:00:03]} 6. Qxc3 {[%emt 0:00:17]} O-O {[%emt 0:00:34]} 7. f3 {[%emt 0:00:01]} Nbd7 {[%emt 0:00:47]} 8. e4 {[%emt 0:00:39]} e5 {[%emt 0:00:07]} 9. Be3 {[%emt 0:01:42]} a5 {[%emt 0:02:11]} 10. Ne2 {[%emt 0:00:15]} Re8 {[%emt 0:00:38]} 11. d5 {[%emt 0:00:52]} a4 {[%emt 0:01:24]} 12. Qc2 {[%emt 0:00:49]} Nc5 {[%emt 0:00:06]} 13. Nc3 {[%emt 0:00:03]} Bd7 {[%emt 0:00:02]} 14. Be2 {[%emt 0:00:18]} b6 {[%emt 0:00:13]} 15. O-O {[%emt 0:00:15]} h6 {[%emt 0:00:17]} 16. Kh1 {[%emt 0:00:31]} Nh7 {[%emt 0:00:49]} 17. Rf2 {[%emt 0:02:31]} Nb3 {[%emt 0:01:31]} 18. Rd1 {[%emt 0:00:22]} Qe7 {[%emt 0:01:18]} 19. Nb5 {[%emt 0:01:01]} Bxb5 {[%emt 0:01:02]} 20. cxb5 {[%emt 0:00:06]} Nc5 {[%emt 0:00:45]} 21. g3 {[%emt 0:00:42]} Nf8 {[%emt 0:00:06]} 22. h4 {[%emt 0:01:02]} Nfd7 {[%emt 0:00:05]} 23. Bc4 {[%emt 0:00:15]} Rf8 {[%emt 0:02:00]} 24. Rh2 {[%emt 0:00:45]} f5 {[%emt 0:00:35]} 25. exf5 {[%emt 0:00:37]} e4 {[%emt 0:00:35]} 26. f4 {[%emt 0:00:19]} h5 {[%emt 0:01:50]} 27. Be2 {[%emt 0:00:19]} Qf7 {[%emt 0:01:30]} 28. g4 {[%emt 0:01:39]} hxg4 {[%emt 0:00:26]} 29. h5 {[%emt 0:01:37]} Qxf5 {[%emt 0:01:21]} 30. h6 {[%emt 0:00:37]} Nf6 {[%emt 0:00:24]} 31. Rg1 {[%emt 0:00:24]} gxh6 {[%emt 0:02:42]} 32. Rxh6 {[%emt 0:05:40]} Kg7 {[%emt 0:00:56]} 33. Rh2 {[%emt 0:00:39]} Kf7 {[%emt 0:00:25]} 34. Kg2 {[%emt 0:00:23]} g3 {[%emt 0:00:23]} 35. Rh4 {[%emt 0:00:44]} Ke7 {[%emt 0:00:06]} 36. Bc4 {[%emt 0:00:55]} Ncd7 {[%emt 0:00:04]} 37. Rgh1 {[%emt 0:00:08]} Kd8 {[%emt 0:00:31]} 38. R1h3 {[%emt 0:00:26]} Kc8 {[%emt 0:00:28]} 39. Rxg3 {[%emt 0:00:39]} Kb7 {[%emt 0:00:41]} 40. Rg5 {[%emt 0:00:15]} Rg8 {[%emt 0:00:01]} 41. Qd1 {[%emt 0:00:06]} Nc5 {[%emt 0:00:30]} 42. Kh2 {[%emt 0:00:22]} Rxg5 {[%emt 0:00:02]} 43. fxg5 {[%emt 0:00:03]} Nfd7 {[%emt 0:00:11]} 44. Qf1 {[%emt 0:00:32]} Qxf1 {[%emt 0:00:04]} 45. Bxf1 {[%emt 0:00:02]} Rg8 {[%emt 0:00:04]} 46. Bh3 {[%emt 0:00:09]} Rg7 {[%emt 0:00:18]} 47. Kg3 {[%emt 0:00:05]} Nd3 {[%emt 0:00:12]} 48. Rxe4 {[%emt 0:00:14]} N7c5 {[%emt 0:00:27]} 49. Re8 {[%emt 0:00:09]} Nxb2 {[%emt 0:00:16]} 50. Bf5 {[%emt 0:00:18]} Nc4 {[%emt 0:00:11]} 51. Kg4 {[%emt 0:00:09]} Nxe3+ {[%emt 0:00:10]} 52. Rxe3 {[%emt 0:00:02]} Nb3 {[%emt 0:00:14]} 53. Rd3 {[%emt 0:00:09]} Nc5 {[%emt 0:00:05]} 54. Re3 {[%emt 0:00:05]} Nb3 {[%emt 0:00:03]} 55. g6 {[%emt 0:00:12]} Nd4 {[%emt 0:00:17]} 56. Kg5 {[%emt 0:00:18]} Nxf5 {[%emt 0:00:18]} 57. Kxf5 {[%emt 0:00:02]} Rg8 {[%emt 0:00:02]} 58. Re7 {[%emt 0:00:09]} Rf8+ {[%emt 0:00:02]} 59. Rf7 {[%emt 0:00:01]} Rg8 {[%emt 0:00:14]} 60. g7 {[%emt 0:00:02]} 1-0

[Event "Chinese League Div-A Rapid 2022"]
[Site "Fuling,Chongqing"]
[Date "2022.09.14"]
[Round "7.12"]
[White "Lin, Chen"]
[Black "Zeng, Chongsheng"]
[Result "1/2-1/2"]
[ECO "B01"]
[WhiteElo "2485"]
[BlackElo "2597"]
[Annotator "TA"]
[PlyCount "80"]
[EventDate "2022.09.07"]
[EventType "team-tourn"]
[EventCountry "CHN"]
[SourceTitle "playchess.com"]
[Source "ChessBase"]
[SourceQuality "1"]
[TimeControl "1500+10"]

{[%evp 10,80,35,14,27,25,22,16,36,19,46,51,47,47,47,31,40,37,54,4,19,0,3,10,13,4,22,12,14,16,14,13,26,3,3,3,5,7,36,0,0,0,0,0,8,3,0,0,2,3,3,3,3,2,7,5,8,0,0,0,0,0,0,0,0,0,0,0,0,0,0,0,0]} 1. e4 {[%emt 0:00:06]} d5 {[%emt 0:00:01]} 2. exd5 {[%emt 0:00:03]} Qxd5 {[%emt 0:00:02]} 3. Nc3 {[%emt 0:00:05]} Qa5 {[%emt 0:00:02]} 4. d4 {[%emt 0:00:07]} Nf6 {[%emt 0:00:01]} 5. Nf3 {[%emt 0:00:09]} c6 {[%emt 0:00:02]} 6. h3 {[%emt 0:00:13]} Bf5 $1 {[%emt 0:00:02] B01: Scandinavian Defence.} 7. Nh4 {[%emt 0:00:08]} Bg6 {[%emt 0:00:02]} 8. Nxg6 {[%emt 0:00:06]} hxg6 {[%emt 0:00:02]} 9. g3 {[%emt 0:00:10]} e6 {[%emt 0:00:03]} 10. Bg2 $1 {[%emt 0:00:16]} Nbd7 {[%emt 0:00:03]} 11. O-O {[%emt 0:00:06]} Bd6 {[%emt 0:00:03]} 12. Ne2 {[%emt 0:00:17]} O-O {[%emt 0:00:04]} 13. c4 {[%emt 0:00:21]} e5 {[%emt 0:00:07]} 14. Be3 {[%emt 0:00:17]} ({Better is} 14. a3 $14) 14... Rad8 {[%emt 0:00:02]} 15. Qc2 {[%emt 0:00:31]} exd4 {[%emt 0:00:03]} 16. Nxd4 {[%emt 0:00:04]} Rfe8 {[%emt 0:00:02]} 17. Rfe1 {[%emt 0:00:12]} Qc7 {[%emt 0:00:04]} 18. a3 {[%emt 0:00:46]} a5 {[%emt 0:00:02]} 19. Rab1 {[%emt 0:01:10] [#]} Rxe3 $146 {[%emt 0:00:31]} ({Predecessor:} 19... Re7 20. b4 axb4 21. axb4 Rde8 22. Bd2 Rxe1+ 23. Bxe1 Bf8 24. Bd2 Nb6 25. b5 cxb5 26. Nxb5 Qxc4 27. Qxc4 Nxc4 {½-½ (33) Sychev,K (2563)-Grischuk,A (2777) Moscow 2019}) 20. Rxe3 {[%emt 0:00:03]} Bc5 {[%emt 0:00:01]} 21. Rd1 {[%emt 0:00:08] Black must now prevent Re2.} (21. Qc3 $5 {[%cal Rb2b4]} Qb6 22. Rd1 $11) 21... Ne5 {[%emt 0:00:02]} 22. Qc3 {[%emt 0:00:12] Strongly threatening b4.} Qd6 $132 {[%emt 0:00:03][%mdl 2048] [#] Black is not keeping still} 23. b3 $1 {[%emt 0:00:15]} Bxd4 {[%emt 0:00:02] [#]} (23... a4 {is more complex.} 24. bxa4 Bxd4 25. Rxd4 Qxd4 26. Qxd4 Rxd4 27. Rxe5 Rxc4 28. Re7 Rc1+) 24. Rxd4 {[%emt 0:00:09][%mdl 64] Remove Defender} Qxd4 {[%emt 0:00:02] The position is equal.} 25. Qxd4 {[%emt 0:00:05][%mdl 64] Remove Defender} Rxd4 {[%emt 0:00:02]} 26. Rxe5 $11 {[%emt 0:00:04][%mdl 4096] Endgame KRB-KRN} a4 {[%emt 0:00:01]} 27. bxa4 {[%emt 0:00:06]} Rxc4 {[%emt 0:00:01]} 28. Re7 {[%emt 0:00:06]} Rxa4 {[%emt 0:00:02]} 29. Rxb7 {[%emt 0:00:03]} Rxa3 {[%emt 0:00:02]} 30. Bxc6 {[%emt 0:00:10]} g5 {[%emt 0:00:15]} 31. Rb5 $1 {[%emt 0:00:10]} g4 {[%emt 0:00:04]} 32. hxg4 {[%emt 0:00:08]} Nxg4 {[%emt 0:00:05]} 33. Be4 {[%emt 0:00:18][%cal Rb5b8]} g6 {[%emt 0:00:05]} 34. Rb2 {[%emt 0:00:11]} Kg7 {[%emt 0:00:05]} 35. Kg2 {[%emt 0:00:03]} Nf6 {[%emt 0:00:02]} 36. Bf3 {[%emt 0:00:03]} Ra7 {[%emt 0:00:24]} 37. Rc2 {[%emt 0:00:03]} Ra3 {[%emt 0:00:09]} 38. Rb2 {[%emt 0:00:02]} Ra7 {[%emt 0:00:05]} 39. Rc2 {[%emt 0:00:06]} Ra3 {[%emt 0:00:04]} 40. Rb2 {[%emt 0:00:02]} Ra7 {[%emt 0:00:10] Weighted Error Value: White=0.07 (flawless) /Black=0.05 (flawless)} 1/2-1/2

[Event "Chinese League Div-A Rapid 2022"]
[Site "Fuling,Chongqing"]
[Date "2022.09.14"]
[Round "7.13"]
[White "Chen, Qi b"]
[Black "Bu, Xiangzhi"]
[Result "1/2-1/2"]
[ECO "C67"]
[WhiteElo "2485"]
[BlackElo "2709"]
[Annotator "TA"]
[PlyCount "62"]
[EventDate "2022.09.07"]
[EventType "team-tourn"]
[EventCountry "CHN"]
[SourceTitle "playchess.com"]
[Source "ChessBase"]
[SourceQuality "1"]
[TimeControl "1500+10"]

{[%evp 18,59,23,12,13,17,19,15,20,13,18,6,8,5,3,0,10,0,7,7,7,0,6,7,13,0,0,0,0,0,0,0,0,0,0,0,0,0,0,0,0,0,0,0]} 1. e4 {[%emt 0:00:02]} e5 {[%emt 0:00:04]} 2. Nf3 {[%emt 0:00:08]} Nc6 {[%emt 0:00:06]} 3. Bb5 {[%emt 0:00:13]} Nf6 {[%emt 0:00:10]} 4. O-O {[%emt 0:00:12][%cal Bh1f1,Bf1e1,Be1e5][%mdl 32]} Nxe4 {[%emt 0:00:05]} 5. Re1 {[%emt 0:00:03]} Nd6 {[%emt 0:00:06]} 6. Nxe5 {[%emt 0:00:04]} Be7 {[%emt 0:00:03]} 7. Bf1 {[%emt 0:00:11]} Nxe5 {[%emt 0:00:04]} 8. Rxe5 {[%emt 0:00:03]} O-O {[%emt 0:00:04]} 9. d4 {[%emt 0:00:23]} Bf6 {[%emt 0:00:20]} 10. Re1 {[%emt 0:00:03]} Re8 {[%emt 0:00:30] The position is equal. C67: Ruy Lopez: Berlin Defence: 4 0-0 Nxe4.} 11. c3 {[%emt 0:00:28]} Rxe1 {[%emt 0:00:17]} 12. Qxe1 {[%emt 0:00:02]} Ne8 {[%emt 0:00:05][%cal Bd6e8,Be8g7,Bg7f5][%mdl 32]} 13. Bf4 {[%emt 0:00:24]} d5 {[%emt 0:00:23]} 14. Bd3 {[%emt 0:00:48]} g6 {[%emt 0:01:13]} 15. Nd2 {[%emt 0:01:31][%cal Bb1d2,Bd2f3,Bf3e5][%mdl 32]} Ng7 {[%emt 0:00:58]} 16. Qe2 {[%emt 0:00:45]} c6 {[%emt 0:01:16]} 17. Re1 {[%emt 0:00:15]} Bf5 {[%emt 0:00:23]} 18. Bxf5 {[%emt 0:00:22]} Nxf5 {[%emt 0:00:03]} 19. Nf3 {[%emt 0:00:08]} Ng7 {[%emt 0:01:55]} 20. Be5 {[%emt 0:00:19]} Ne6 {[%emt 0:02:53]} 21. Bxf6 {[%emt 0:00:05]} Qxf6 {[%emt 0:00:02]} 22. Ne5 {[%emt 0:00:04]} Re8 {[%emt 0:00:19]} 23. Ng4 {[%emt 0:00:14]} Qd8 {[%emt 0:00:31]} 24. Qe5 {[%emt 0:00:17] Hoping for Nf6+.} Ng7 {[%emt 0:00:10]} 25. Qxe8+ {[%emt 0:00:19]} ({But not} 25. Nh6+ $2 Kf8 26. Nxf7 Rxe5 $19) 25... Nxe8 {[%emt 0:00:02]} 26. Rxe8+ {[%emt 0:00:03][%mdl 64] [#] Remove Defender} Qxe8 {[%emt 0:00:02][%cal Re8e1]} 27. Nf6+ {[%emt 0:00:02]} Kf8 {[%emt 0:00:02][%cal Re8e1]} 28. Nxe8 {[%emt 0:00:03]} Kxe8 {[%emt 0:00:02]} 29. f4 {[%emt 0:00:23]} f5 {[%emt 0:00:07]} 30. Kf2 {[%emt 0:00:15] [#] An even fight not without its subleties.  Weighted Error Value: White=0.04 (flawless) /Black=0.01 (flawless)} {Predecessor:} a5 $146 31. a4 Ke7 {½-½ (31) Ding,L (2799)-Ma,Q (2645) Hangzhou 2022} 1/2-1/2

[Event "Chinese League Div-A Rapid 2022"]
[Site "Fuling,Chongqing"]
[Date "2022.09.14"]
[Round "7.14"]
[White "Huang, Qian"]
[Black "Guo, Qi"]
[Result "1/2-1/2"]
[ECO "D56"]
[WhiteElo "2433"]
[BlackElo "2406"]
[Annotator "RC"]
[PlyCount "41"]
[EventDate "2022.09.07"]
[EventType "team-tourn"]
[EventCountry "CHN"]
[SourceTitle "playchess.com"]
[Source "ChessBase"]
[SourceQuality "1"]
[TimeControl "1500+10"]

1. d4 {[%emt 0:00:20]} d5 {[%emt 0:00:01]} 2. c4 {[%emt 0:00:10]} e6 {[%emt 0:00:03]} 3. Nc3 {[%emt 0:00:05]} Be7 {[%emt 0:00:02]} 4. Nf3 {[%emt 0:00:13]} Nf6 {[%emt 0:00:04]} 5. Bg5 {[%emt 0:00:07]} h6 {[%emt 0:00:03]} 6. Bh4 {[%emt 0:00:06]} O-O {[%emt 0:00:04]} 7. e3 {[%emt 0:00:04]} Ne4 {[%emt 0:00:03]} 8. Bxe7 {[%emt 0:00:34]} Qxe7 {[%emt 0:00:03]} 9. Qc2 {[%emt 0:00:09]} Nxc3 {[%emt 0:00:36]} 10. Qxc3 {[%emt 0:00:07]} dxc4 {[%emt 0:00:36]} 11. Bxc4 {[%emt 0:00:27]} c5 {[%emt 0:00:08]} 12. O-O {[%emt 0:00:39]} cxd4 {[%emt 0:00:07]} 13. Nxd4 {[%emt 0:00:02]} Bd7 {[%emt 0:00:04]} 14. Qb3 {[%emt 0:00:52]} Be8 {[%emt 0:01:31]} 15. Rac1 {[%emt 0:00:12]} Nc6 {[%emt 0:00:04]} 16. Nxc6 {[%emt 0:00:02]} Bxc6 {[%emt 0:00:03]} 17. Bb5 {[%emt 0:00:02]} Bd5 {[%emt 0:00:33]} 18. Bc4 {[%emt 0:00:02]} Bc6 {[%emt 0:00:11]} 19. Bb5 {[%emt 0:00:01]} Bd5 {[%emt 0:00:03]} 20. Bc4 {[%emt 0:00:02]} Bc6 {[%emt 0:00:04]} 21. Bb5 {[%emt 0:00:10]} 1/2-1/2

[Event "Chinese League Div-A Rapid 2022"]
[Site "Fuling,Chongqing"]
[Date "2022.09.14"]
[Round "7.15"]
[White "Yeoh, Li Tian"]
[Black "Zhang, Xiao"]
[Result "1/2-1/2"]
[ECO "B13"]
[WhiteElo "2530"]
[BlackElo "2073"]
[Annotator "RC"]
[PlyCount "41"]
[EventDate "2022.09.07"]
[EventType "team-tourn"]
[EventCountry "CHN"]
[SourceTitle "playchess.com"]
[Source "ChessBase"]
[SourceQuality "1"]
[TimeControl "1500+10"]

1. e4 {[%emt 0:00:02]} c6 {[%emt 0:00:04]} 2. d4 {[%emt 0:00:04]} d5 {[%emt 0:00:05]} 3. exd5 {[%emt 0:00:10]} cxd5 {[%emt 0:00:06]} 4. Bd3 {[%emt 0:00:12]} Nc6 {[%emt 0:00:07]} 5. c3 {[%emt 0:00:08]} Nf6 {[%emt 0:01:35]} 6. Nf3 {[%emt 0:01:01]} Bg4 {[%emt 0:01:12]} 7. Bf4 {[%emt 0:00:51]} e6 {[%emt 0:00:55]} 8. Nbd2 {[%emt 0:01:08]} Bd6 {[%emt 0:01:03]} 9. Bxd6 {[%emt 0:00:10]} Qxd6 {[%emt 0:00:03]} 10. O-O {[%emt 0:00:15]} O-O {[%emt 0:00:17]} 11. h3 {[%emt 0:00:49]} Bh5 {[%emt 0:00:04]} 12. Re1 {[%emt 0:00:06]} Rac8 {[%emt 0:00:20]} 13. Qb3 {[%emt 0:00:26]} Qc7 {[%emt 0:00:06]} 14. Ne5 {[%emt 0:00:28]} Nxe5 {[%emt 0:00:32]} 15. Rxe5 {[%emt 0:00:15]} Bg6 {[%emt 0:00:08]} 16. Bxg6 {[%emt 0:00:42]} hxg6 {[%emt 0:00:04]} 17. Rae1 {[%emt 0:00:15]} Nd7 {[%emt 0:00:16]} 18. R5e3 {[%emt 0:00:15]} Nf6 {[%emt 0:00:14]} 19. Re5 {[%emt 0:00:09]} Nd7 {[%emt 0:00:06]} 20. R5e3 {[%emt 0:00:08]} Nf6 {[%emt 0:00:06]} 21. Re5 {[%emt 0:00:14]} 1/2-1/2